bitfinex-derivatives/quotes_ETHF0:USTF0_20241013
["timestamp","ask_amount","ask_price","bid_price","bid_amount"]
[1728794149509,4.5278,2463.0,2462.9,1.32]
[1728794151523,4.5278,2463.0,2462.8,0.4177]
[1728794151524,4.5278,2463.0,2462.8,1.7377]
[1728794153921,1.7484,2462.9,2462.7,1.32]
[1728794154119,1.7484,2462.9,2462.7,1.7394]
[1728794154323,0.439,2462.8,2462.7,1.7394]
[1728794155125,1.7484,2462.9,2462.7,1.7394]
[1728794155126,0.4284,2462.9,2462.7,1.7394]
[1728794155332,0.4284,2462.9,2462.8,1.32]
[1728794158838,3.6362,2462.9,2462.8,1.32]
[1728794160238,0.4284,2462.9,2462.8,1.32]
[1728794160424,3.6362,2462.9,2462.8,1.32]
[1728794161331,0.4284,2462.9,2462.8,1.32]
[1728794161525,3.6362,2462.9,2462.8,1.32]
[1728794163929,3.2078,2462.9,2462.8,1.32]
[1728794165533,3.2078,2462.9,2462.8,2.38102609]
[1728794165933,3.2078,2462.9,2462.8,2.78712609]
[1728794166135,3.2078,2462.9,2462.8,4.4380526]
[1728794166335,3.2078,2462.9,2462.8,4.0319526]
[1728794167440,3.2078,2462.9,2462.8,2.97092651]
[1728794167637,3.2078,2462.9,2462.8,4.56248845]
[1728794168241,3.2078,2462.9,2462.8,5.0703352]
[1728794168632,3.2078,2462.9,2462.8,4.14494241]
[1728794168833,3.2078,2462.9,2462.8,5.07048321]
[1728794172232,3.2078,2462.9,2462.8,3.242956]
[1728794172546,3.2078,2462.9,2462.8,5.07080911]
[1728794173342,3.76378411,2463.1,2462.8,5.07080911]
[1728794173546,3.76378411,2463.1,2462.9,2.71629438]
[1728794173841,3.2078,2463.0,2462.9,1.06255003]
[1728794174048,3.6331,2463.0,2462.9,2.71634075]
[1728794174640,5.23243411,2463.0,2462.9,1.65379072]
[1728794175242,5.23243411,2463.0,2462.9,3.22492687]
[1728794175439,5.23243411,2463.0,2462.9,3.75349514]
[1728794178550,2.02463411,2463.0,2462.9,3.75349514]
[1728794178750,5.23243411,2463.0,2462.9,3.75349514]
[1728794179351,2.02463411,2463.0,2462.9,3.75349514]
[1728794179544,5.23243411,2463.0,2462.9,3.75349514]
[1728794179744,5.23243411,2463.0,2462.9,3.75372424]
[1728794181343,5.23243411,2463.0,2462.9,4.21996959]
[1728794182145,5.23243411,2463.0,2462.9,4.42310708]
[1728794182646,5.23243411,2463.0,2462.9,4.42310712]
[1728794182845,5.23243411,2463.0,2462.9,3.75372424]
[1728794183045,3.6331,2463.0,2462.9,3.75372424]
[1728794183455,3.6331,2463.0,2462.9,3.75372697]
[1728794184754,3.6331,2463.0,2462.9,4.22009042]
[1728794185048,0.4253,2463.0,2462.9,4.22009042]
[1728794185355,3.6331,2463.0,2462.9,4.22009623]
[1728794185856,3.6331,2463.0,2462.9,4.22009659]
[1728794186054,3.6331,2463.0,2462.9,3.75372671]
[1728794186255,3.6331,2463.0,2462.9,4.22009994]
[1728794187157,3.6331,2463.0,2462.9,4.22024586]
[1728794187458,3.6331,2463.0,2462.9,3.75386382]
[1728794188155,3.6331,2463.0,2462.9,4.22025442]
[1728794188847,3.6331,2463.0,2462.9,4.2202602]
[1728794189248,3.6331,2463.0,2462.9,3.75386382]
[1728794189950,3.6331,2463.0,2462.9,4.22545431]
[1728794191059,3.6331,2463.0,2462.9,4.69174713]
[1728794191252,3.6331,2463.0,2462.9,4.22545431]
[1728794192056,3.6331,2463.0,2462.9,4.09848865]
[1728794192253,3.6331,2463.0,2462.9,4.22545469]
[1728794192462,3.6331,2463.0,2462.9,3.59063619]
[1728794192655,3.6331,2463.0,2462.9,4.22546761]
[1728794193157,3.6331,2463.0,2462.9,3.75499867]
[1728794194157,9.0131,2463.0,2462.9,3.75499867]
[1728794194363,9.0131,2463.0,2462.9,3.33656602]
[1728794194559,9.0131,2463.0,2462.9,3.75491653]
[1728794194760,7.6931,2463.0,2462.9,3.75491653]
[1728794194952,3.6331,2463.0,2462.9,3.75491653]
[1728794200262,4.9531,2463.0,2462.9,3.75491653]
[1728794201752,4.9531,2463.0,2462.9,2.82870088]
[1728794201957,4.9531,2463.0,2462.9,3.75481894]
[1728794202660,4.9531,2463.0,2462.9,4.22091836]
[1728794202862,4.9531,2463.0,2462.9,3.75481894]
[1728794203161,1.7453,2463.0,2462.9,4.22091184]
[1728794203456,4.9531,2463.0,2462.9,4.22091184]
[1728794203663,7.48944801,2463.0,2462.9,3.75481894]
[1728794203857,11.67596001,2463.0,2462.8,1.0634581]
[1728794204055,11.67596001,2463.0,2462.7,1.0634581]
[1728794204056,8.47726001,2462.9,2462.7,1.0634581]
[1728794204255,3.98286001,2462.8,2462.6,1.0634581]
[1728794204453,3.98286001,2462.8,2462.4,2.53707624]
[1728794204454,0.40613,2462.6,2462.4,1.59156194]
[1728794204650,2.53851195,2462.6,2462.5,1.48180987]
[1728794204859,2.53851195,2462.6,2462.5,1.48180771]
[1728794205264,2.53851195,2462.6,2462.5,1.06347713]
[1728794205452,2.13238195,2462.6,2462.4,1.06347713]
[1728794205656,2.91801388,2462.5,2462.4,1.06347713]
[1728794205865,2.91801388,2462.5,2462.4,1.48170415]
[1728794206062,3.32416388,2462.5,2462.4,1.48170415]
[1728794206264,1.72615,2462.5,2462.3,1.06347713]
[1728794206463,6.12587585,2462.4,2462.3,1.06347713]
[1728794206658,6.12587585,2462.4,2462.2,1.47717713]
[1728794207257,6.12587585,2462.4,2462.3,1.06347713]
[1728794207569,4.5278,2462.4,2462.2,1.47717713]
[1728794210455,4.5278,2462.4,2462.2,0.4137]
[1728794211263,4.5278,2462.4,2462.1,1.06347713]
[1728794211466,4.5278,2462.4,2462.1,2.81787713]
[1728794215070,1.32,2462.4,2462.1,2.81787713]
[1728794215279,4.5278,2462.4,2462.2,1.32]
[1728794215465,4.5278,2462.4,2462.3,1.32]
[1728794221174,3.2078,2462.4,2462.3,1.32]
[1728794222067,3.2078,2462.4,2462.3,1.72618]
[1728794222471,3.2078,2462.4,2462.3,2.78965713]
[1728794222669,3.2078,2462.4,2462.3,5.78698]
[1728794222867,3.2078,2462.4,2462.3,6.85045713]
[1728794228079,3.2078,2462.4,2462.3,6.44427713]
[1728794228979,5.09903331,2462.8,2462.3,6.61448541]
[1728794229176,3.6151,2462.8,2462.7,1.32]
[1728794229378,3.2078,2462.8,2462.7,1.32]
[1728794229575,3.2078,2462.8,2462.7,6.2175]
[1728794229779,0.4274,2463.0,2462.7,6.62361]
[1728794229976,0.4274,2463.0,2462.9,1.32]
[1728794234284,1.7474,2463.0,2462.9,1.32]
[1728794234679,1.7474,2463.0,2462.8,1.7462]
[1728794234884,1.32,2462.9,2462.8,1.7462]
[1728794236792,1.32,2462.9,2462.8,2.1523]
[1728794237886,1.32,2462.9,2462.8,1.7462]
[1728794239187,1.7474,2463.0,2462.8,1.7462]
[1728794240200,2.1693,2463.0,2462.8,1.32]
[1728794242293,5.3771,2463.0,2462.8,1.32]
[1728794242894,2.1693,2463.0,2462.8,1.32]
[1728794243197,5.3771,2463.0,2462.8,1.32]
[1728794244791,2.1693,2463.0,2462.8,1.32]
[1728794244992,5.3771,2463.0,2462.8,1.32]
[1728794245495,2.1693,2463.0,2462.8,1.32]
[1728794245695,5.3771,2463.0,2462.8,1.32]
[1728794245895,0.4177,2462.9,2462.8,1.32]
[1728794246588,0.4177,2462.9,2462.8,1.7261]
[1728794246794,0.4177,2462.9,2462.8,1.32]
[1728794256414,0.4177,2462.9,2462.8,2.38101382]
[1728794261414,0.4177,2462.9,2462.8,2.67172901]
[1728794261610,0.4177,2462.9,2462.8,2.38101382]
[1728794261913,0.4177,2462.9,2462.8,3.90574042]
[1728794262113,0.4177,2462.9,2462.8,2.67172486]
[1728794262315,0.4177,2462.9,2462.8,2.79868382]
[1728794262511,0.4177,2462.9,2462.8,4.03284272]
[1728794262923,0.4177,2462.9,2462.8,3.90588376]
[1728794263211,0.4177,2462.9,2462.8,4.03284363]
[1728794263913,0.4177,2462.9,2462.8,4.03292077]
[1728794264613,0.4177,2462.9,2462.8,4.56346889]
[1728794264814,0.4177,2462.9,2462.8,2.97190695]
[1728794265317,0.4177,2462.9,2462.8,5.07130579]
[1728794265917,0.4177,2462.9,2462.8,4.56346889]
[1728794266319,0.4177,2462.9,2462.8,5.07130813]
[1728794266621,0.4177,2462.9,2462.8,5.07188183]
[1728794271027,0.4177,2462.9,2462.8,2.5547326]
[1728794271215,0.4177,2462.9,2462.8,3.43843441]
[1728794271423,0.4177,2462.9,2462.8,2.5547326]
[1728794271621,0.4177,2462.9,2462.8,4.14953619]
[1728794272327,0.4177,2462.9,2462.8,6.27291243]
[1728794272524,0.4177,2462.9,2462.8,4.14953619]
[1728794272929,0.4177,2462.9,2462.8,6.27291243]
[1728794273319,1.48063331,2462.9,2462.8,7.08544927]
[1728794273921,1.48063331,2462.9,2462.8,7.08577974]
[1728794274121,1.48063331,2462.9,2462.8,9.55894703]
[1728794274823,1.48063331,2462.9,2462.8,9.55919831]
[1728794275724,1.48063331,2462.9,2462.8,7.43582207]
[1728794276716,1.06293331,2462.9,2462.8,7.43582207]
[1728794278328,1.06293331,2462.9,2462.8,10.09004237]
[1728794278533,1.06293331,2462.9,2462.8,10.09021772]
[1728794279030,1.06293331,2462.9,2462.8,7.43599742]
[1728794280027,1.06293331,2462.9,2462.8,10.09021772]
[1728794280925,1.49033331,2463.0,2462.8,10.5484617]
[1728794281126,2.02547585,2463.0,2462.9,9.98611384]
[1728794281425,1.4933651,2463.0,2462.9,9.98611384]
[1728794282835,1.0659651,2463.0,2462.9,7.85885294]
[1728794283021,1.0659651,2463.0,2462.9,12.32493294]
[1728794283226,1.0659651,2463.0,2462.9,11.91885294]
[1728794284330,1.0659651,2463.1,2462.9,14.97914324]
[1728794284534,1.0659651,2463.1,2463.0,9.23204566]
[1728794284721,1.0659651,2463.1,2463.0,8.2796447]
[1728794285125,1.0659651,2463.1,2463.0,10.40506942]
[1728794286030,1.5060651,2463.2,2463.0,8.2796447]
[1728794286326,1.5060651,2463.2,2463.1,4.15152496]
[1728794288027,1.5060651,2463.2,2463.1,3.64292123]
[1728794288232,1.5060651,2463.2,2463.1,4.1506986]
[1728794289232,1.0659651,2463.3,2463.1,10.33580151]
[1728794289530,3.2078,2463.4,2463.2,12.30946471]
[1728794289735,3.2078,2463.4,2463.3,7.91386288]
[1728794289940,3.2078,2463.4,2463.3,8.34066288]
[1728794290129,3.2078,2463.4,2463.3,5.40479943]
[1728794290533,3.2078,2463.4,2463.3,8.3405869]
[1728794291247,3.2078,2463.4,2463.3,7.12219973]
[1728794291932,3.2078,2463.4,2463.3,7.12133224]
[1728794292132,3.2078,2463.4,2463.3,6.9182424]
[1728794292331,3.2078,2463.4,2463.3,4.3297251]
[1728794292932,3.2078,2463.4,2463.3,4.79472396]
[1728794293139,3.2078,2463.4,2463.3,5.92044882]
[1728794293544,3.2078,2463.4,2463.3,4.7357451]
[1728794294239,3.2078,2463.4,2463.3,5.54243083]
[1728794294540,3.2078,2463.4,2463.3,6.77530028]
[1728794294738,1.0659651,2463.7,2463.3,20.95628028]
[1728794294935,4.4588,2463.8,2463.6,2.38019308]
[1728794295135,4.4588,2463.8,2463.7,1.7324]
[1728794295845,4.4588,2463.8,2463.7,2.79259308]
[1728794296347,4.4588,2463.8,2463.7,1.7324]
[1728794299438,5.7788,2463.8,2463.7,1.7324]
[1728794304250,5.7788,2463.8,2463.7,1.32]
[1728794304639,5.7788,2463.8,2463.5,0.4474]
[1728794304640,2.571,2463.8,2463.5,0.4474]
[1728794304847,1.32,2463.6,2463.5,1.32]
[1728794305351,1.32,2463.7,2463.5,1.32]
[1728794309753,5.7788,2463.8,2463.5,1.32]
[1728794316746,2.571,2463.8,2463.5,1.32]
[1728794317356,3.2078,2463.7,2463.5,1.32]
[1728794323275,2.571,2463.8,2463.5,1.32]
[1728794323768,3.2078,2463.7,2463.5,1.32]
[1728794324062,3.2078,2463.7,2463.5,2.38019308]
[1728794329273,3.2078,2463.7,2463.6,1.06019308]
[1728794330267,4.2737651,2463.7,2463.6,1.06019308]
[1728794331467,4.2737651,2463.7,2463.6,1.35079677]
[1728794332057,1.0659651,2463.7,2463.6,1.35079677]
[1728794332260,4.2737651,2463.7,2463.6,1.47772265]
[1728794332562,6.53182585,2463.7,2463.5,1.06019308]
[1728794332765,1.06444423,2463.6,2463.5,1.06019308]
[1728794333068,1.06444423,2463.6,2463.5,1.47781021]
[1728794333269,1.06444423,2463.6,2463.5,2.71177909]
[1728794333968,1.06444423,2463.6,2463.5,2.71178136]
[1728794334159,1.59807585,2463.6,2463.5,2.71178136]
[1728794334365,1.59807585,2463.6,2463.5,1.47781021]
[1728794334564,1.59807585,2463.6,2463.5,2.71205079]
[1728794334867,1.59807585,2463.6,2463.5,1.47781021]
[1728794335170,6.97727585,2463.6,2463.5,2.71237696]
[1728794335357,13.51158195,2463.6,2463.4,1.06019308]
[1728794335557,0.406,2463.4,2463.3,1.06019308]
[1728794335871,4.9338,2463.4,2463.3,1.47807944]
[1728794336065,8.993,2463.4,2463.3,1.47807944]
[1728794336363,8.993,2463.4,2463.3,1.35108915]
[1728794336364,10.18450523,2463.4,2463.3,1.35108915]
[1728794336869,8.587,2463.4,2463.3,1.06019308]
[1728794337166,8.587,2463.4,2463.2,1.06019308]
[1728794337167,10.18450519,2463.4,2463.2,1.06019308]
[1728794337470,1.06480875,2463.3,2463.1,2.91028962]
[1728794337663,1.06480875,2463.3,2463.2,1.65215815]
[1728794337869,1.06480875,2463.3,2463.2,2.15993136]
[1728794338070,1.06480875,2463.3,2463.2,1.65216603]
[1728794338261,1.06480875,2463.3,2463.2,2.29580346]
[1728794338569,1.06480875,2463.3,2463.2,2.71353684]
[1728794339069,1.06480875,2463.3,2463.2,2.71353795]
[1728794339257,1.06480875,2463.3,2463.2,1.47914695]
[1728794339660,1.06480875,2463.3,2463.2,2.79914695]
[1728794340762,1.06480875,2463.3,2463.2,4.03316097]
[1728794341173,1.06480875,2463.3,2463.2,4.03311083]
[1728794342071,1.06480875,2463.3,2463.2,4.03297149]
[1728794342365,5.59260875,2463.4,2463.2,4.03297149]
[1728794342562,5.59260875,2463.4,2463.2,2.38141246]
[1728794347370,5.59260875,2463.4,2463.3,0.4091]
[1728794349066,4.27260875,2463.4,2463.3,2.79051246]
[1728794349271,4.5278,2463.4,2463.3,1.47051246]
[1728794351062,1.32,2463.4,2463.3,1.47051246]
[1728794351669,3.2078,2463.4,2463.3,1.47051246]
[1728794352873,3.2078,2463.4,2463.3,2.79051246]
[1728794356974,3.2078,2463.4,2463.3,3.08093164]
[1728794357471,3.2078,2463.4,2463.3,3.20787044]
[1728794358673,3.2078,2463.4,2463.3,2.79051246]
[1728794358867,3.2078,2463.4,2463.3,4.72001141]
[1728794359071,1.06480875,2463.6,2463.4,0.406]
[1728794359268,4.27260875,2463.7,2463.5,5.41887135]
[1728794359480,3.2078,2463.7,2463.6,4.02989631]
[1728794359769,3.2078,2463.7,2463.6,3.4123684]
[1728794360180,3.2078,2463.7,2463.6,4.47227901]
[1728794360773,3.2078,2463.7,2463.6,4.47221609]
[1728794361779,3.2078,2463.7,2463.6,3.41230548]
[1728794361983,3.2078,2463.7,2463.6,5.00253429]
[1728794362279,3.2078,2463.7,2463.6,3.41230548]
[1728794362471,3.2078,2463.7,2463.6,5.00253429]
[1728794362671,3.2078,2463.7,2463.6,3.41230548]
[1728794362874,3.2078,2463.7,2463.6,5.00253429]
[1728794363377,3.2078,2463.7,2463.6,3.41230548]
[1728794363787,3.2078,2463.7,2463.6,3.12190693]
[1728794364082,3.2078,2463.7,2463.6,5.00245472]
[1728794364470,3.2078,2463.7,2463.6,6.06208958]
[1728794364672,3.2078,2463.7,2463.6,4.47186077]
[1728794365682,3.2078,2463.7,2463.6,4.47152806]
[1728794366083,3.2078,2463.7,2463.6,3.4118932]
[1728794366286,3.2078,2463.7,2463.6,4.47144802]
[1728794366581,3.2078,2463.7,2463.6,4.47146252]
[1728794367485,3.2078,2463.7,2463.6,4.47142512]
[1728794369792,2.38480875,2463.9,2463.6,4.47142512]
[1728794369991,5.59260875,2463.9,2463.7,1.32]
[1728794372187,1.32,2463.8,2463.7,1.32]
[1728794372391,3.22970875,2463.8,2463.7,1.32]
[1728794373987,6.43750875,2463.8,2463.7,1.32]
[1728794374190,6.84344875,2463.8,2463.6,2.82206932]
[1728794374493,6.84344875,2463.8,2463.6,0.4425]
[1728794374494,1.7307,2463.7,2463.6,0.4425]
[1728794374687,2.79550875,2463.7,2463.6,0.4425]
[1728794376999,6.00330875,2463.7,2463.6,0.4425]
[1728794377384,2.79550875,2463.7,2463.6,0.4425]
[1728794377789,6.00330875,2463.7,2463.6,0.4425]
[1728794379497,4.68330875,2463.7,2463.6,0.4425]
[1728794381396,3.6185,2463.7,2463.6,0.4425]
[1728794381593,4.68330875,2463.7,2463.6,0.4425]
[1728794381799,3.6185,2463.7,2463.6,0.4425]
[1728794382291,4.68330875,2463.7,2463.6,0.4425]
[1728794382591,3.6185,2463.7,2463.6,0.4425]
[1728794383587,4.68330875,2463.7,2463.6,0.4425]
[1728794384898,3.6185,2463.7,2463.6,0.4425]
[1728794385093,4.68330875,2463.7,2463.6,0.4425]
[1728794387297,1.47550875,2463.7,2463.6,0.4425]
[1728794390600,1.47550875,2463.7,2463.6,1.50206932]
[1728794390804,1.47550875,2463.7,2463.6,0.4425]
[1728794391295,1.47550875,2463.7,2463.6,1.50206932]
[1728794392110,1.47550875,2463.7,2463.6,2.82206932]
[1728794392302,1.47550875,2463.7,2463.6,3.23942828]
[1728794392504,1.47550875,2463.7,2463.6,3.11250402]
[1728794392807,1.47550875,2463.7,2463.6,3.23942854]
[1728794393197,1.47550875,2463.7,2463.6,3.23944714]
[1728794393598,1.47550875,2463.7,2463.6,3.11252262]
[1728794393914,1.47550875,2463.7,2463.6,3.23944776]
[1728794394306,1.47550875,2463.7,2463.6,4.47244633]
[1728794394909,1.47550875,2463.7,2463.6,4.4724924]
[1728794395310,1.47550875,2463.7,2463.6,3.23944776]
[1728794395511,1.47550875,2463.7,2463.6,4.47259152]
[1728794395716,1.47550875,2463.7,2463.6,3.23944776]
[1728794396212,1.47550875,2463.7,2463.6,4.47258599]
[1728794396816,1.47550875,2463.7,2463.6,3.15258599]
[1728794397013,2.00820519,2463.7,2463.6,1.50206932]
[1728794397218,2.00820519,2463.7,2463.6,3.11264605]
[1728794398300,2.00820519,2463.7,2463.6,3.23957396]
[1728794398507,2.00820519,2463.7,2463.6,4.47299107]
[1728794399208,2.00820519,2463.7,2463.6,3.23957396]
[1728794399412,2.00820519,2463.7,2463.6,4.47310821]
[1728794399614,2.00820519,2463.7,2463.6,3.23957396]
[1728794400216,2.00820519,2463.7,2463.6,4.47322152]
[1728794400511,2.00820519,2463.7,2463.6,4.47322003]
[1728794400911,2.00820519,2463.7,2463.6,3.9213473]
[1728794401115,3.73415519,2463.7,2463.6,2.1588473]
[1728794401326,2.13665,2463.7,2463.6,1.47835829]
[1728794401517,2.13665,2463.7,2463.6,1.06085514]
[1728794401710,0.40597,2463.6,2463.5,1.06085514]
[1728794402017,0.40597,2463.6,2463.4,2.00452881]
[1728794402018,3.45238195,2463.6,2463.4,1.06085514]
[1728794402316,5.4004,2463.5,2463.3,1.06085514]
[1728794402519,3.32357867,2463.4,2463.3,1.06085514]
[1728794402714,3.74477867,2463.4,2463.3,1.4785909]
[1728794402914,3.33877867,2463.4,2463.3,1.4785909]
[1728794403115,3.33877867,2463.4,2463.3,1.47858718]
[1728794403422,3.33877867,2463.4,2463.3,2.79858718]
[1728794405018,2.01877867,2463.4,2463.3,2.79858718]
[1728794405218,1.06472257,2463.4,2463.3,4.03227165]
[1728794405418,1.06472257,2463.4,2463.3,4.44957165]
[1728794405723,1.06472257,2463.4,2463.3,3.8964713]
[1728794405923,1.06472257,2463.4,2463.3,5.48670011]
[1728794406119,1.06472257,2463.4,2463.3,3.8964713]
[1728794406334,1.06472257,2463.4,2463.3,4.44957104]
[1728794406622,1.06472257,2463.4,2463.3,4.031839]
[1728794406819,1.06472257,2463.4,2463.3,4.32250875]
[1728794407022,1.06472257,2463.4,2463.3,4.44944794]
[1728794408029,1.06472257,2463.4,2463.3,4.44924822]
[1728794410425,1.06472257,2463.4,2463.3,4.44924936]
[1728794410611,1.06472257,2463.4,2463.3,3.89615618]
[1728794410815,1.06472257,2463.4,2463.3,3.38839483]
[1728794411012,6.04122257,2463.5,2463.3,5.48636303]
[1728794411220,4.9765,2463.5,2463.4,1.06066576]
[1728794411425,5.25407867,2463.5,2463.4,1.7565]
[1728794411625,4.72093182,2463.5,2463.4,3.26466576]
[1728794412124,4.72093182,2463.5,2463.4,3.55527995]
[1728794413227,4.72093182,2463.5,2463.4,3.68221369]
[1728794414129,4.72093182,2463.5,2463.4,3.55528332]
[1728794414325,4.72093182,2463.5,2463.4,3.68221645]
[1728794415026,4.72093182,2463.5,2463.4,3.68221832]
[1728794415229,6.04093182,2463.5,2463.4,3.68221832]
[1728794415819,6.04093182,2463.5,2463.4,3.55528332]
[1728794416223,6.04093182,2463.5,2463.4,3.68221741]
[1728794416625,6.04093182,2463.5,2463.4,3.68221825]
[1728794416830,6.04093182,2463.5,2463.4,3.55528332]
[1728794417132,6.04093182,2463.5,2463.4,3.68221824]
[1728794417427,6.04093182,2463.5,2463.4,3.55528332]
[1728794418225,6.04093182,2463.5,2463.4,3.68221902]
[1728794419332,4.9765,2463.5,2463.4,3.68221902]
[1728794420133,1.7687,2463.5,2463.4,3.68221902]
[1728794420632,4.9765,2463.5,2463.4,3.68221902]
[1728794420935,6.57407867,2463.5,2463.4,3.68221902]
[1728794421237,4.9765,2463.5,2463.4,3.68221902]
[1728794421637,4.9765,2463.5,2463.4,3.68221913]
[1728794422734,6.57407867,2463.5,2463.4,3.55528332]
[1728794422938,6.57407867,2463.5,2463.4,3.68222086]
[1728794423133,4.9765,2463.5,2463.4,3.68222086]
[1728794424239,6.04113212,2463.5,2463.4,3.68222086]
[1728794424838,4.9765,2463.5,2463.4,3.68222086]
[1728794425043,4.9765,2463.5,2463.4,2.36222086]
[1728794425230,4.9765,2463.5,2463.3,1.06066576]
[1728794425434,3.73702291,2463.4,2463.3,1.06066576]
[1728794425635,3.73702291,2463.4,2463.3,1.35132487]
[1728794425936,3.73702291,2463.4,2463.3,1.06066576]
[1728794426132,3.73702291,2463.4,2463.3,1.35133017]
[1728794426339,3.73702291,2463.4,2463.3,1.06066576]
[1728794426534,3.33102291,2463.4,2463.2,1.06066576]
[1728794426740,1.8955926,2463.3,2463.2,1.06066576]
[1728794426939,1.8955926,2463.3,2463.2,2.71206336]
[1728794427450,2.8095726,2463.3,2463.2,2.71206336]
[1728794427747,6.0173726,2463.3,2463.2,2.71200627]
[1728794427945,6.0173726,2463.3,2463.2,1.47827801]
[1728794428443,6.0173726,2463.3,2463.2,1.35133403]
[1728794428927,6.0173726,2463.3,2463.2,1.35132573]
[1728794429330,6.0173726,2463.3,2463.2,1.47827282]
[1728794429540,6.0173726,2463.3,2463.2,1.35132573]
[1728794429741,4.6973726,2463.3,2463.2,2.79827286]
[1728794430241,4.6973726,2463.3,2463.2,2.67132573]
[1728794431128,4.6973726,2463.3,2463.2,2.38066576]
[1728794431741,4.6973726,2463.3,2463.2,2.67130347]
[1728794432134,4.6973726,2463.3,2463.2,2.79825052]
[1728794432632,4.6973726,2463.3,2463.2,4.03186921]
[1728794432837,3.6327,2463.3,2463.2,4.56133471]
[1728794433042,3.6327,2463.3,2463.2,5.06911168]
[1728794433229,3.6327,2463.3,2463.2,3.47888287]
[1728794433436,3.6327,2463.3,2463.2,4.56133471]
[1728794433629,4.6973726,2463.3,2463.2,2.9711059]
[1728794433829,3.6327,2463.3,2463.2,4.56133568]
[1728794434041,3.6327,2463.3,2463.2,5.06911481]
[1728794435341,3.6327,2463.3,2463.2,4.14375319]
[1728794435647,3.6327,2463.3,2463.2,5.06911057]
[1728794436240,3.6327,2463.3,2463.2,4.27069752]
[1728794436443,3.6327,2463.3,2463.2,4.56132656]
[1728794437043,3.6327,2463.3,2463.2,5.06914063]
[1728794437238,4.6973726,2463.3,2463.2,5.06914063]
[1728794440244,1.4895726,2463.3,2463.2,5.06914063]
[1728794440441,4.6973726,2463.3,2463.2,5.06914063]
[1728794441037,1.4895726,2463.3,2463.2,5.06914063]
[1728794441445,4.6973726,2463.3,2463.2,5.06914063]
[1728794442343,4.6973726,2463.3,2463.2,5.53440419]
[1728794442743,4.6973726,2463.3,2463.2,5.06914063]
[1728794443250,4.6973726,2463.3,2463.2,5.53446167]
[1728794443643,4.6973726,2463.3,2463.2,5.06914063]
[1728794444037,4.6973726,2463.3,2463.2,5.06931408]
[1728794444242,4.6973726,2463.3,2463.2,5.53467844]
[1728794444643,1.4895726,2463.3,2463.2,5.53467844]
[1728794445342,4.6973726,2463.3,2463.2,4.14756228]
[1728794446650,1.4895726,2463.3,2463.2,4.14756228]
[1728794446850,4.6973726,2463.3,2463.2,4.14855886]
[1728794447343,3.6327,2463.3,2463.2,4.14855886]
[1728794447544,3.6327,2463.3,2463.2,3.818504]
[1728794447752,3.6327,2463.3,2463.2,4.1485631]
[1728794447946,4.69817565,2463.3,2463.2,4.1485631]
[1728794448251,1.49037565,2463.3,2463.2,4.1485631]
[1728794448452,4.69817565,2463.3,2463.2,4.1485631]
[1728794448850,1.49037565,2463.3,2463.2,4.1485631]
[1728794449051,4.69817565,2463.3,2463.2,4.1485631]
[1728794449948,5.22972291,2463.3,2463.2,2.8285631]
[1728794450153,5.22972291,2463.3,2463.2,4.42131562]
[1728794451443,5.22972291,2463.3,2463.2,4.09125652]
[1728794451647,5.22972291,2463.3,2463.2,4.42143542]
[1728794452052,5.22972291,2463.3,2463.2,4.42144937]
[1728794453455,5.22972291,2463.3,2463.2,5.74144937]
[1728794455254,2.02192291,2463.3,2463.2,5.23368291]
[1728794455454,5.22972291,2463.3,2463.2,5.74146347]
[1728794456760,5.22972291,2463.3,2463.2,5.74146559]
[1728794457654,2.02192291,2463.3,2463.2,5.74146559]
[1728794457850,5.22972291,2463.3,2463.2,5.74146559]
[1728794458949,2.02192291,2463.3,2463.2,5.74146559]
[1728794459153,5.22972291,2463.3,2463.2,5.74146559]
[1728794459354,5.22972291,2463.3,2463.2,5.23404096]
[1728794459554,5.22972291,2463.3,2463.2,5.74182152]
[1728794459855,5.22972291,2463.3,2463.2,5.74182159]
[1728794460053,2.02192291,2463.3,2463.2,5.74182159]
[1728794460366,5.22972291,2463.3,2463.2,4.14895405]
[1728794461654,5.22972291,2463.3,2463.2,3.64121811]
[1728794461857,5.22972291,2463.3,2463.2,4.1489988]
[1728794462256,5.22972291,2463.3,2463.2,2.91429323]
[1728794462462,2.02192291,2463.3,2463.2,4.14915496]
[1728794462651,5.22972291,2463.3,2463.2,4.14916714]
[1728794465167,5.22972291,2463.3,2463.2,4.14925037]
[1728794465371,5.22972291,2463.3,2463.2,2.55494496]
[1728794465664,5.22972291,2463.3,2463.2,4.14932815]
[1728794466262,5.22972291,2463.3,2463.2,7.08519487]
[1728794466465,5.22972291,2463.3,2463.2,5.76519487]
[1728794466959,2.02192291,2463.3,2463.2,5.76519487]
[1728794467165,5.22972291,2463.3,2463.2,5.76519487]
[1728794468968,5.22972291,2463.3,2463.2,4.67859069]
[1728794469271,5.22972291,2463.3,2463.2,5.76529838]
[1728794469971,4.80482291,2463.3,2463.2,7.08529838]
[1728794470265,4.80482291,2463.3,2463.2,9.55588935]
[1728794470468,4.80482291,2463.3,2463.2,9.98838935]
[1728794472075,4.27376727,2463.3,2463.2,9.98838935]
[1728794474475,1.06596727,2463.3,2463.2,9.98838935]
[1728794474775,4.27376727,2463.3,2463.2,9.98838935]
[1728794474978,4.27376727,2463.3,2463.2,9.98828013]
[1728794475370,4.27376727,2463.3,2463.2,7.86485983]
[1728794476373,4.27376727,2463.3,2463.2,10.51906325]
[1728794476670,4.27376727,2463.3,2463.2,10.51900028]
[1728794476978,3.2078,2463.3,2463.2,10.51900028]
[1728794478075,4.27376727,2463.3,2463.2,10.51900028]
[1728794478273,3.2078,2463.3,2463.2,6.54455427]
[1728794478475,3.2078,2463.3,2463.2,7.86470604]
[1728794479971,3.2078,2463.3,2463.2,7.86365426]
[1728794480172,3.2078,2463.3,2463.2,10.51787456]
[1728794480576,1.06596727,2463.4,2463.2,10.51787456]
[1728794480771,4.27376727,2463.4,2463.3,9.96410688]
[1728794481588,4.27376727,2463.4,2463.3,7.4945217]
[1728794481787,4.27376727,2463.4,2463.3,9.96383313]
[1728794482493,4.27376727,2463.4,2463.3,9.96370885]
[1728794483787,4.27376727,2463.4,2463.3,8.87708413]
[1728794483989,4.27376727,2463.4,2463.3,6.30104116]
[1728794484193,4.27376727,2463.4,2463.3,10.09027322]
[1728794485297,4.27376727,2463.4,2463.3,7.62118013]
[1728794486095,4.27376727,2463.4,2463.3,7.4942437]
[1728794487697,4.27376727,2463.4,2463.3,7.49415933]
[1728794489791,4.27376727,2463.4,2463.3,7.49365668]
[1728794489997,4.68476727,2463.4,2463.3,7.49365668]